fUST/lending_fUST_20250209
["ID","MTS","AMOUNT","RATE_DAILY","PERIOD"]
[352309507,1739035844709,-565.31,0.0001178,2]
[352309508,1739035844718,-500.0,0.0001178,2]
[352309509,1739035844728,-3459.67,0.0001178,2]
[352309510,1739035844738,-500.0,0.0001178,2]
[352309511,1739035844747,-1075.04,0.0001178,2]
[352309512,1739035844756,-24048.17,0.0001178,2]
[352309513,1739035844766,-785.28,0.0001178,2]
[352309514,1739035844775,-500.0,0.0001178,2]
[352309515,1739035844784,-2328.67,0.0001178,2]
[352309516,1739035844794,-1254.21,0.0001178,2]
[352309517,1739035844803,-709.34,0.0001178,2]
[352309518,1739035844813,-8990.44,0.0001178,2]
[352309519,1739035844822,-1327.06,0.0001178,2]
[352309520,1739035844831,-500.0,0.0001178,2]
[352309521,1739035844841,-831.25,0.0001178,2]
[352309522,1739035844851,-500.0,0.0001178,2]
[352309523,1739035844869,-500.0,0.0001178,2]
[352309524,1739035844881,-938.25,0.0001178,2]
[352309525,1739035844891,-500.0,0.0001178,2]
[352309526,1739035844900,-500.0,0.0001178,2]
[352309527,1739035844910,-2820.78,0.0001178,2]
[352309528,1739035844920,-912.05,0.0001178,2]
[352309529,1739035844930,-500.12,0.0001178,2]
[352309530,1739035844940,-912.24691488,0.0001178,2]
[352309531,1739035845135,-309.92308512,0.0001178,2]
[352309532,1739035845145,-500.0,0.0001178,2]
[352309533,1739035845154,-500.0,0.0001178,2]
[352309534,1739035845164,-500.0,0.0001178,2]
[352309535,1739035845173,-2144.06,0.0001178,2]
[352309536,1739035845182,-507.17,0.0001178,2]
[352309537,1739035845192,-514.36,0.0001178,2]
[352309538,1739035845201,-981.03,0.0001178,2]
[352309539,1739035845211,-5137.32,0.0001178,2]
[352309540,1739035845220,-2055.38,0.0001178,2]
[352309541,1739035845228,-500.0,0.0001178,2]
[352309542,1739035845238,-500.0,0.0001178,2]
[352309543,1739035845247,-2080.61,0.0001178,2]
[352309544,1739035845256,-500.0,0.0001178,2]
[352309545,1739035845266,-1022.21,0.0001178,2]
[352309546,1739035845275,-505.44,0.0001178,2]
[352309547,1739035845284,-2345.16,0.0001178,2]
[352309548,1739035845294,-955.36,0.0001178,2]
[352309549,1739035845303,-10757.62,0.0001178,2]
[352309550,1739035845312,-511.1,0.0001178,2]
[352309551,1739035845321,-2518.64,0.0001178,2]
[352309552,1739035845330,-600.41,0.0001178,2]
[352309553,1739035845339,-786.61,0.0001178,2]
[352309554,1739035845349,-715.82,0.0001178,2]
[352309555,1739035845358,-889.99,0.0001178,2]
[352309556,1739035845367,-638.77,0.0001178,2]
[352309557,1739035845376,-500.0,0.0001178,2]
[352309558,1739035845385,-500.0,0.0001178,2]
[352309559,1739035845395,-1064.2,0.0001178,2]
[352309560,1739035845405,-704.92,0.0001178,2]
[352309561,1739035845415,-776.37,0.0001178,2]
[352309562,1739035845425,-928.79,0.0001178,2]
[352309563,1739035845434,-151.0,0.00011793,2]
[352309564,1739035845443,-507.205333,0.00011793,2]
[352309565,1739035845452,-507.205333,0.00011793,2]
[352309566,1739035845462,-151.0,0.00011793,2]
[352309567,1739035845471,-209.002665,0.00011793,2]
[352309568,1739035845481,-209.002665,0.00011793,2]
[352309569,1739035845491,-151.0,0.00011793,2]
[352309570,1739035845499,-537.0,0.00011794,2]
[352309571,1739035845508,-1975.0,0.00011794,2]
[352309572,1739035845518,-2296.0,0.00011794,2]
[352309573,1739035845527,-396.0,0.00011794,2]
[352309574,1739035845536,-151.0,0.000118,2]
[352309575,1739035845545,-5453.19682922,0.000118,2]
[352309576,1739035845555,-13265.39216455,0.00011801,2]
[352309577,1739035845564,-308.255241,0.00011885,2]
[352309578,1739035845573,-308.255241,0.00011885,2]
[352309579,1739035845582,-151.0,0.000119,2]
[352309580,1739035845591,-178.61642,0.00011917,2]
[352309581,1739035845600,-178.61642,0.00011917,2]
[352309582,1739035845610,-500.0,0.00011917,2]
[352309583,1739035845619,-944.88,0.00011917,2]
[352309584,1739035845628,-542.01,0.00011917,2]
[352309585,1739035845637,-500.0,0.00011917,2]
[352309586,1739035845646,-876.13,0.00011917,2]
[352309587,1739035845656,-500.0,0.00011917,2]
[352309588,1739035845665,-500.0,0.00011917,2]
[352309589,1739035845674,-500.0,0.00011917,2]
[352309590,1739035845684,-642.67,0.00011917,2]
[352309591,1739035845694,-651.87,0.00011917,2]
[352309592,1739035845704,-318.37,0.00011917,2]
[352309593,1739035845713,-151.0,0.00011917,2]
[352309594,1739035845723,-500.0,0.00011917,2]
[352309595,1739035845734,-500.0,0.00011917,2]
[352309596,1739035845743,-699.21,0.00011917,2]
[352309597,1739035845752,-1039.713454,0.00011917,2]
[352309598,1739035845762,-1039.713454,0.00011917,2]
[352309599,1739035845772,-500.0,0.00011917,2]
[352309600,1739035845782,-500.0,0.00011917,2]
[352309601,1739035845792,-500.0,0.00011917,2]
[352309602,1739035845801,-151.0,0.00011917,2]
[352309603,1739035845811,-151.0,0.00011917,2]
[352309604,1739035845820,-500.0,0.00011917,2]
[352309605,1739035845829,-500.0,0.00011917,2]
[352309606,1739035845839,-500.0,0.00011917,2]
[352309607,1739035845849,-798.75,0.00011917,2]
[352309608,1739035845858,-565.31,0.00011917,2]
[352309609,1739035845868,-500.0,0.00011917,2]
[352309610,1739035845877,-3459.67,0.00011917,2]
[352309612,1739035845887,-500.0,0.00011917,2]
[352309613,1739035845896,-1075.04,0.00011917,2]
[352309614,1739035845905,-216.037757,0.00011917,2]
[352309615,1739035845915,-216.037757,0.00011917,2]
[352309616,1739035845924,-24048.17,0.00011917,2]
[352309617,1739035845934,-785.28,0.00011917,2]
[352309619,1739035845943,-500.0,0.00011917,2]
[352309621,1739035845952,-2328.67,0.00011917,2]
[352309623,1739035845962,-1254.21,0.00011917,2]
[352309624,1739035845973,-709.34,0.00011917,2]
[352309625,1739035845984,-8990.44,0.00011917,2]
[352309626,1739035845994,-1327.06,0.00011917,2]
[352309627,1739035846003,-500.0,0.00011917,2]
[352309628,1739035846014,-831.25,0.00011917,2]
[352309629,1739035846023,-500.0,0.00011917,2]
[352309630,1739035846033,-500.0,0.00011917,2]
[352309631,1739035846042,-938.25,0.00011917,2]
[352309632,1739035846052,-500.0,0.00011917,2]
[352309633,1739035846062,-500.0,0.00011917,2]
[352309634,1739035846071,-2820.78,0.00011917,2]
[352309635,1739035846080,-643.55753771,0.00011917,2]
[352309636,1739035846098,-268.49246229,0.00011917,2]
[352309637,1739035846107,-1222.17,0.00011917,2]
[352309638,1739035846117,-500.0,0.00011917,2]
[352309639,1739035846127,-500.0,0.00011917,2]
[352309640,1739035846136,-500.0,0.00011917,2]
[352309641,1739035846147,-2144.06,0.00011917,2]
[352309642,1739035846156,-507.17,0.00011917,2]
[352309643,1739035846166,-514.36,0.00011917,2]
[352309644,1739035846175,-981.03,0.00011917,2]
[352309645,1739035846185,-5137.32,0.00011917,2]
[352309646,1739035846195,-2055.38,0.00011917,2]
[352309647,1739035846205,-500.0,0.00011917,2]
[352309648,1739035846215,-500.0,0.00011917,2]
[352309649,1739035846223,-2080.61,0.00011917,2]
[352309650,1739035846234,-500.0,0.00011917,2]
[352309651,1739035846243,-1022.21,0.00011917,2]
[352309652,1739035846252,-505.44,0.00011917,2]
[352309653,1739035846262,-2345.16,0.00011917,2]
[352309654,1739035846271,-955.36,0.00011917,2]
[352309655,1739035846281,-10757.62,0.00011917,2]
[352309656,1739035846290,-511.1,0.00011917,2]
[352309657,1739035846299,-825.90699049,0.00011917,2]
[352309664,1739035846820,-673.33,0.00011506,2]
[352309665,1739035846831,-1652.74,0.00011643,2]
[352309666,1739035846841,-380.02999999,0.00011643,2]
[352309667,1739035846852,-293.30000001,0.00011643,2]
[352309668,1739035846863,-1652.74,0.0001178,2]
[352309669,1739035846872,-673.33,0.0001178,2]
[352309670,1739035846882,-1692.73300951,0.00011917,2]
[352309671,1739035846892,-389.96940018,0.00011917,2]
[352309672,1739035846908,-210.44059982,0.00011917,2]
[352309673,1739035846918,-786.61,0.00011917,2]
[352309674,1739035846927,-715.82,0.00011917,2]
[352309675,1739035846936,-889.99,0.00011917,2]
[352309676,1739035846946,-638.77,0.00011917,2]
[352309677,1739035846956,-500.0,0.00011917,2]
[352309678,1739035846965,-500.0,0.00011917,2]
[352309679,1739035846978,-151.0,0.00011917,2]
[352309680,1739035846989,-151.0,0.00011917,2]
[352309681,1739035846998,-1064.2,0.00011917,2]
[352309682,1739035847007,-704.92,0.00011917,2]
[352309683,1739035847018,-776.37,0.00011917,2]
[352309684,1739035847027,-928.79,0.00011917,2]
[352309685,1739035847037,-1652.74,0.00011917,2]
[352309686,1739035847048,-673.33,0.00011917,2]
[352309687,1739035847057,-1000.0,0.00011922,2]
[352309688,1739035847066,-178.61642,0.00012054,2]
[352309689,1739035847076,-178.61642,0.00012054,2]
[352309690,1739035847086,-151.0,0.00012054,2]
[352309691,1739035847095,-500.0,0.00012054,2]
[352309692,1739035847104,-180.251109,0.00012054,2]
[352309693,1739035847114,-180.251109,0.00012054,2]
[352309694,1739035847123,-151.0,0.00012054,2]
[352309695,1739035847133,-944.88,0.00012054,2]
[352309696,1739035847143,-542.01,0.00012054,2]
[352309697,1739035847152,-500.0,0.00012054,2]
[352309698,1739035847162,-876.13,0.00012054,2]
[352309699,1739035847172,-500.0,0.00012054,2]
[352309700,1739035847181,-500.0,0.00012054,2]
[352309701,1739035847191,-500.0,0.00012054,2]
[352309702,1739035847200,-642.67,0.00012054,2]
[352309703,1739035847210,-651.87,0.00012054,2]
[352309704,1739035847219,-151.0,0.00012054,2]
[352309705,1739035847229,-500.0,0.00012054,2]
[352309706,1739035847239,-500.0,0.00012054,2]
[352309707,1739035847248,-199.073782,0.00012054,2]
[352309708,1739035847258,-699.21,0.00012054,2]
[352309709,1739035847268,-199.073782,0.00012054,2]
[352309710,1739035847278,-251.273616,0.00012054,2]
[352309711,1739035847287,-251.273616,0.00012054,2]
[352309712,1739035847296,-500.0,0.00012054,2]
[352309713,1739035847305,-500.0,0.00012054,2]
[352309714,1739035847315,-500.0,0.00012054,2]
[352309715,1739035847323,-500.0,0.00012054,2]
[352309716,1739035847333,-500.0,0.00012054,2]
[352309717,1739035847342,-500.0,0.00012054,2]
[352309718,1739035847351,-798.75,0.00012054,2]
[352309719,1739035847361,-565.31,0.00012054,2]
[352309720,1739035847370,-500.0,0.00012054,2]
[352309721,1739035847380,-3459.67,0.00012054,2]
[352309722,1739035847390,-500.0,0.00012054,2]
[352309723,1739035847400,-308.255241,0.00012054,2]
[352309724,1739035847409,-308.255241,0.00012054,2]
[352309725,1739035847419,-16089.89892891,0.00012054,2]
[352309726,1739035847892,-215.7975175,0.00011425,2]
[352309727,1739035847903,-1185.89951883,0.00012054,2]
[352309728,1739035847929,-6772.37155226,0.00012054,2]
[352309729,1739035847940,-785.28,0.00012054,2]
[352309730,1739035847951,-500.0,0.00012054,2]
[352309731,1739035847962,-151.0,0.00012054,2]
[352309732,1739035847975,-2328.67,0.00012054,2]
[352309733,1739035847985,-1254.21,0.00012054,2]
[352309734,1739035847994,-709.34,0.00012054,2]
[352309735,1739035848003,-8990.44,0.00012054,2]
[352309736,1739035848016,-1327.06,0.00012054,2]
[352309737,1739035848026,-500.0,0.00012054,2]
[352309738,1739035848037,-831.25,0.00012054,2]
[352309739,1739035848047,-500.0,0.00012054,2]
[352309740,1739035848060,-500.0,0.00012054,2]
[352309741,1739035848069,-938.25,0.00012054,2]
[352309742,1739035848079,-500.0,0.00012054,2]
[352309743,1739035848090,-500.0,0.00012054,2]
[352309744,1739035848099,-507.205333,0.00012054,2]
[352309745,1739035848109,-2820.78,0.00012054,2]
[352309746,1739035848118,-912.05,0.00012054,2]
[352309747,1739035848128,-507.205333,0.00012054,2]
[352309748,1739035848139,-1222.17,0.00012054,2]
[352309749,1739035848149,-500.0,0.00012054,2]
[352309750,1739035848160,-500.0,0.00012054,2]
[352309751,1739035848171,-500.0,0.00012054,2]
[352309752,1739035848182,-151.0,0.00012054,2]
[352309753,1739035848194,-209.002665,0.00012054,2]
[352309754,1739035848205,-2144.06,0.00012054,2]
[352309755,1739035848215,-209.002665,0.00012054,2]
[352309756,1739035848227,-507.17,0.00012054,2]
[352309757,1739035848237,-514.36,0.00012054,2]
[352309758,1739035848248,-981.03,0.00012054,2]
[352309759,1739035848259,-5137.32,0.00012054,2]
[352309760,1739035848270,-2055.38,0.00012054,2]
[352309761,1739035848281,-500.0,0.00012054,2]
[352309762,1739035848291,-543.76074371,0.00012054,2]
[352309763,1739035848301,-2080.61,0.00012054,2]
[352309764,1739035848311,-500.0,0.00012054,2]
[352309765,1739035848322,-151.341923,0.00012054,2]
[352309766,1739035848332,-1022.21,0.00012054,2]
[352309767,1739035848343,-505.44,0.00012054,2]
[352309768,1739035848353,-2345.16,0.00012054,2]
[352309769,1739035848364,-955.36,0.00012054,2]
[352309770,1739035848374,-10757.62,0.00012054,2]
[352309771,1739035848384,-511.1,0.00012054,2]
[352309772,1739035848394,-2518.64,0.00012054,2]
[352309773,1739035848405,-600.41,0.00012054,2]
[352309774,1739035848418,-786.61,0.00012054,2]
[352309775,1739035848429,-715.82,0.00012054,2]
[352309776,1739035848441,-889.99,0.00012054,2]
[352309777,1739035848451,-638.77,0.00012054,2]
[352309778,1739035848461,-500.0,0.00012054,2]
[352309779,1739035848471,-500.0,0.00012054,2]
[352309780,1739035848481,-1064.2,0.00012054,2]
[352309781,1739035848494,-704.92,0.00012054,2]
[352309782,1739035848505,-776.37,0.00012054,2]
[352309783,1739035848515,-928.79,0.00012054,2]
[352309784,1739035848526,-1652.74,0.00012054,2]
[352309785,1739035848537,-673.33,0.00012054,2]
[352309786,1739035848548,-1951.8006584,0.00012069,2]
[352309787,1739035848559,-2000.0,0.000121,2]
[352309788,1739035848570,-151.0,0.000121,2]
[352309789,1739035848580,-152534.79636761,0.0001216,2]
[352309790,1739035848593,-600.0,0.0001216,2]
[352309791,1739035848606,-4628.52002852,0.0001216,2]
[352309797,1739035913910,1201.00001,0.0001222,28]
[352309807,1739036690444,362.60216465,0.00016,99]
[352309858,1739037032828,-724.70709503,0.00010585,2]
[352309860,1739037032838,-400.0,0.00010685,2]
[352309862,1739037032848,-300.0,0.00010956,2]
[352309864,1739037032858,-500.0,0.00010957,2]
[352309866,1739037032868,-616.76860306,0.00010957,2]
[352309869,1739037032877,-500.0,0.00010957,2]
[352309870,1739037032887,-500.0,0.00010957,2]
[352309872,1739037032896,-500.0,0.00010957,2]
[352309875,1739037032906,-500.0,0.00010957,2]
[352309877,1739037032915,-500.0,0.00010957,2]
[352309879,1739037032925,-500.0,0.00010958,2]
[352309881,1739037032935,-500.0,0.00010958,2]
[352309883,1739037032944,-500.0,0.00010958,2]
[352309885,1739037032954,-500.0,0.00010958,2]
[352309887,1739037032963,-500.0,0.00010958,2]
[352309889,1739037032972,-500.0,0.00010958,2]
[352309891,1739037032981,-500.0,0.00010958,2]
[352309893,1739037032991,-866.14,0.00010958,2]
[352309895,1739037033000,-500.0,0.00010958,2]
[352309921,1739037033193,-533.05,0.00010958,2]
[352309923,1739037033204,-500.0,0.00010958,2]
[352309925,1739037033215,-500.0,0.00010958,2]
[352309927,1739037033225,-500.0,0.00010958,2]
[352309929,1739037033235,-500.0,0.00010958,2]
[352309931,1739037033244,-466.71739335,0.00010958,2]
[352309933,1739037033255,-500.0,0.00010958,2]
[352309935,1739037033265,-500.0,0.00010958,2]
[352309937,1739037033274,-500.0,0.00010958,2]
[352309939,1739037033284,-803.11,0.00010958,2]
[352309941,1739037033293,-500.0,0.00010958,2]
[352309943,1739037033303,-500.0,0.00010958,2]
[352309945,1739037033313,-500.0,0.00010958,2]
[352309947,1739037033323,-500.0,0.00010958,2]
[352309949,1739037033332,-500.0,0.00010958,2]
[352309951,1739037033345,-597.54,0.00010958,2]
[352309953,1739037033355,-500.0,0.00010958,2]
[352309955,1739037033365,-589.12,0.00010958,2]
[352309957,1739037033374,-500.0,0.00010958,2]
[352309959,1739037033384,-500.0,0.00010958,2]
[352309961,1739037033394,-500.0,0.00010958,2]
[352309963,1739037033403,-500.0,0.00010958,2]
[352309965,1739037033413,-500.0,0.00010958,2]
[352309966,1739037033424,-500.0,0.00010958,2]
[352309969,1739037033435,-462.37079878,0.00010958,2]
[352309970,1739037033445,-640.95,0.00010958,2]
[352309973,1739037033454,-500.0,0.00010958,2]
[352309975,1739037033464,-500.0,0.00010958,2]
[352309976,1739037033473,-500.0,0.00010958,2]
[352309979,1739037033483,-500.0,0.00010958,2]
[352309980,1739037033492,-500.0,0.00010958,2]
[352309982,1739037033502,-240.54372462,0.00010958,2]
[352309984,1739037033512,-500.0,0.00010958,2]
[352309986,1739037033522,-500.0,0.00010958,2]
[352309988,1739037033533,-518.2,0.00010958,2]
[352309991,1739037033543,-732.19,0.00010958,2]
[352309992,1739037033553,-500.0,0.00010958,2]
[352309994,1739037033563,-500.0,0.00010958,2]
[352309996,1739037033573,-188.19660481,0.00010958,2]
[352309999,1739037033585,-719.84,0.00010958,2]
[352310001,1739037033595,-1030.25,0.00010958,2]
[352310002,1739037033604,-2134.61,0.00010958,2]
[352310005,1739037033615,-500.0,0.00010958,2]
[352310006,1739037033624,-500.0,0.00010958,2]
[352310008,1739037033634,-22044.15,0.00010958,2]
[352310010,1739037033644,-1216.47,0.00010958,2]
[352310012,1739037033653,-650.23,0.00010958,2]
[352310014,1739037033662,-1149.69,0.00010958,2]
[352310016,1739037033672,-898.24,0.00010958,2]
[352310019,1739037033682,-500.0,0.00010958,2]
[352310020,1739037033691,-8241.23,0.00010958,2]
[352310022,1739037033700,-500.0,0.00010958,2]
[352310024,1739037033709,-761.98,0.00010958,2]
[352310026,1739037033719,-500.0,0.00010958,2]
[352310029,1739037033729,-500.0,0.00010958,2]
[352310031,1739037033742,-836.05,0.00010958,2]
[352310033,1739037033751,-500.0,0.00010958,2]
[352310034,1739037033761,-2585.72,0.00010958,2]
[352310036,1739037033770,-500.0,0.00010958,2]
[352310038,1739037033780,-860.07,0.00010958,2]
[352310040,1739037033790,-500.0,0.00010958,2]
[352310042,1739037033799,-1107.41,0.00010958,2]
[352310045,1739037033809,-500.0,0.00010958,2]
[352310046,1739037033818,-500.0,0.00010958,2]
[352310048,1739037033828,-500.0,0.00010958,2]
[352310050,1739037033838,-500.0,0.00010958,2]
[352310052,1739037033848,-500.0,0.00010958,2]
[352310054,1739037033858,-1876.05,0.00010958,2]
[352310057,1739037033868,-500.0,0.00010958,2]
[352310058,1739037033877,-500.0,0.00010958,2]
[352310061,1739037033887,-500.0,0.00010958,2]
[352310063,1739037033897,-858.41,0.00010958,2]
[352310064,1739037033907,-500.0,0.00010958,2]
[352310066,1739037033918,-500.0,0.00010958,2]
[352310069,1739037033928,-500.0,0.00010958,2]
[352310071,1739037033937,-500.0,0.00010958,2]
[352310073,1739037033947,-4495.15,0.00010958,2]
[352310074,1739037033957,-500.0,0.00010958,2]
[352310076,1739037033967,-1820.53,0.00010958,2]
[352310078,1739037033977,-178.22823847,0.00010958,2]
[352310080,1739037033987,-500.0,0.00010958,2]
[352310082,1739037033997,-1798.46,0.00010958,2]
[352310084,1739037034007,-500.0,0.00010958,2]
[352310086,1739037034017,-835.94,0.00010958,2]
[352310088,1739037034026,-500.0,0.00010958,2]
[352310090,1739037034036,-1868.50118429,0.00010958,2]
[352310456,1739037038634,-335.30881571,0.00010958,2]
[352310457,1739037038643,-500.0,0.00010958,2]
[352310458,1739037038653,-2052.02,0.00010958,2]
[352310459,1739037038662,-778.74,0.00010958,2]
[352310460,1739037038672,-894.43,0.00010958,2]
[352310461,1739037038681,-688.29,0.00010958,2]
[352310462,1739037038690,-500.03392032,0.00010958,2]
[352310463,1739037038699,-9412.92,0.00010958,2]
[352310464,1739037038709,-500.0,0.00010958,2]
[352310465,1739037038718,-500.0,0.00010958,2]
[352310466,1739037038728,-500.0,0.00010958,2]
[352310467,1739037038738,-525.36,0.00010958,2]
[352310468,1739037038748,-500.0,0.00010958,2]
[352310469,1739037038758,-500.0,0.00010958,2]
[352310470,1739037038768,-558.92,0.00010958,2]
[352310471,1739037038777,-931.18,0.00010958,2]
[352310472,1739037038787,-657.17,0.00010958,2]
[352310473,1739037038797,-511.50051567,0.00010958,2]
[352310474,1739037038807,-500.0,0.00010958,2]
[352310475,1739037038817,-1377.28,0.00010958,2]
[352310476,1739037038826,-679.32,0.00010958,2]
[352310477,1739037038835,-500.0,0.00010958,2]
[352310478,1739037038844,-500.0,0.00010958,2]
[352310479,1739037038853,-500.0,0.00010958,2]
[352310480,1739037038863,-500.0,0.00010958,2]
[352310481,1739037038872,-616.8,0.00010958,2]
[352310482,1739037038882,-3171.37,0.00010958,2]
[352310483,1739037038891,-500.0,0.00010958,2]
[352310484,1739037038900,-849.25,0.00010958,2]
[352310485,1739037038910,-486.90819191,0.00010958,2]
[352310486,1739037038919,-21125.65,0.00010958,2]
[352310487,1739037038929,-227.12990439,0.00010958,2]
[352310488,1739037038938,-532.86,0.00010958,2]
[352310489,1739037038948,-500.0,0.00011095,2]
[352310490,1739037038958,-500.0,0.00011095,2]
[352310491,1739037038968,-500.0,0.00011095,2]
[352310492,1739037038977,-500.0,0.00011095,2]
[352310493,1739037038987,-500.0,0.00011095,2]
[352310494,1739037038996,-866.14,0.00011095,2]
[352310495,1739037039006,-500.0,0.00011095,2]
[352310496,1739037039015,-500.0,0.00011095,2]
[352310497,1739037039025,-500.0,0.00011095,2]
[352310498,1739037039035,-500.0,0.00011095,2]
[352310499,1739037039044,-500.0,0.00011095,2]
[352310500,1739037039054,-803.11,0.00011095,2]
[352310501,1739037039063,-500.0,0.00011095,2]
[352310502,1739037039073,-500.0,0.00011095,2]
[352310503,1739037039083,-500.0,0.00011095,2]
[352310504,1739037039093,-597.54,0.00011095,2]
[352310505,1739037039103,-500.0,0.00011095,2]
[352310506,1739037039112,-589.12,0.00011095,2]
[352310507,1739037039122,-318.02772529,0.00011095,2]
[352310508,1739037039131,-500.0,0.00011095,2]
[352310509,1739037039141,-500.0,0.00011095,2]
[352310510,1739037039150,-500.0,0.00011095,2]
[352310511,1739037039159,-500.0,0.00011095,2]
[352310512,1739037039169,-640.95,0.00011095,2]
[352310513,1739037039179,-500.0,0.00011095,2]
[352310514,1739037039188,-500.0,0.00011095,2]
[352310515,1739037039198,-500.0,0.00011095,2]
[352310516,1739037039207,-500.0,0.00011095,2]
[352310517,1739037039216,-500.0,0.00011095,2]
[352310518,1739037039225,-500.0,0.00011095,2]
[352310519,1739037039235,-500.0,0.00011095,2]
[352310520,1739037039244,-518.2,0.00011095,2]
[352310521,1739037039254,-732.19,0.00011095,2]
[352310522,1739037039264,-500.0,0.00011095,2]
[352310523,1739037039273,-500.0,0.00011095,2]
[352310524,1739037039283,-719.84,0.00011095,2]
[352310525,1739037039293,-1030.25,0.00011095,2]
[352310526,1739037039302,-2134.61,0.00011095,2]
[352310527,1739037039312,-500.0,0.00011095,2]
[352310528,1739037039321,-1216.47,0.00011095,2]
[352310529,1739037039330,-650.23,0.00011095,2]
[352310530,1739037039343,-1149.69,0.00011095,2]
[352310531,1739037039352,-898.24,0.00011095,2]
[352310532,1739037039361,-500.0,0.00011095,2]
[352310533,1739037039371,-8241.23,0.00011095,2]
[352310534,1739037039380,-761.98,0.00011095,2]
[352310535,1739037039390,-500.0,0.00011095,2]
[352310536,1739037039400,-500.0,0.00011095,2]
[352310537,1739037039409,-836.05,0.00011095,2]
[352310538,1739037039419,-500.0,0.00011095,2]
[352310539,1739037039428,-2585.72,0.00011095,2]
[352310540,1739037039437,-500.0,0.00011095,2]
[352310541,1739037039446,-860.07,0.00011095,2]
[352310542,1739037039456,-500.0,0.00011095,2]
[352310543,1739037039466,-1107.41,0.00011095,2]
[352310544,1739037039475,-500.0,0.00011095,2]
[352310545,1739037039484,-500.0,0.00011095,2]
[352310546,1739037039494,-500.0,0.00011095,2]
[352310547,1739037039505,-500.0,0.00011095,2]
[352310548,1739037039515,-500.0,0.00011095,2]
[352310549,1739037039525,-1876.05,0.00011095,2]
[352310550,1739037039535,-500.0,0.00011095,2]
[352310551,1739037039545,-500.0,0.00011095,2]
[352310552,1739037039555,-858.41,0.00011095,2]
[352310553,1739037039565,-500.0,0.00011095,2]
[352310554,1739037039575,-500.0,0.00011095,2]
[352310555,1739037039584,-500.0,0.00011095,2]
[352310556,1739037039594,-4495.15,0.00011095,2]
[352310557,1739037039603,-500.0,0.00011095,2]
[352310558,1739037039613,-1820.53,0.00011095,2]
[352310559,1739037039622,-500.0,0.00011095,2]
[352310560,1739037039632,-1798.46,0.00011095,2]
[352310561,1739037039641,-500.0,0.00011095,2]
[352310562,1739037039651,-835.94,0.00011095,2]
[352310563,1739037039660,-500.0,0.00011095,2]
[352310564,1739037039669,-2203.81,0.00011095,2]
[352310565,1739037039678,-500.0,0.00011095,2]
[352310566,1739037039688,-2052.02,0.00011095,2]
[352310567,1739037039698,-778.74,0.00011095,2]
[352310568,1739037039709,-894.43,0.00011095,2]
[352310569,1739037039718,-688.29,0.00011095,2]
[352310570,1739037039728,-9412.92,0.00011095,2]
[352310571,1739037039737,-500.0,0.00011095,2]
[352310572,1739037039747,-500.0,0.00011095,2]
[352310573,1739037039757,-500.0,0.00011095,2]